[Event "NJSK 2026 Jeugd A"]
[Site "Helmond, Netherlands"]
[Date "2026.04.30"]
[Round "6.9"]
[White "Fallaux, Storm"]
[Black "Ten Kate, Gustav"]
[Result "0-1"]
[TimeControl "90min/40moves + 30min + 30sec/move"]
[WhiteTitle "-"]
[BlackTitle "-"]
[WhiteFideId "1073095"]
[BlackFideId "1095781"]
[WhiteElo "2034"]
[BlackElo "1972"]

1. e4 {[%clk 01:30:56]} {[%emt 00:00:03]} c5 {[%clk 01:30:44]} {[%emt
00:00:15]} 2. Nf3 {[%clk 01:31:19]} {[%emt 00:00:08]} d6 {[%clk 01:31:10]}
{[%emt 00:00:05]} 3. d4 {[%clk 01:31:43]} {[%emt 00:00:06]} cxd4 {[%clk
01:31:36]} {[%emt 00:00:07]} 4. Nxd4 {[%clk 01:32:08]} {[%emt 00:00:02]} Nf6
{[%clk 01:32:00]} {[%emt 00:00:06]} 5. Nc3 {[%clk 01:32:32]} {[%emt 00:00:05]}
a6 {[%clk 01:32:24]} {[%emt 00:00:06]} 6. f4 {[%clk 01:32:57]} {[%emt
00:00:06]} e5 {[%clk 01:32:44]} {[%emt 00:00:10]} 7. Nf3 {[%clk 01:33:18]}
{[%emt 00:00:09]} Nbd7 {[%clk 01:31:34]} {[%emt 00:01:40]} 8. a4 {[%clk
01:33:22]} {[%emt 00:00:26]} Qc7 {[%clk 01:30:40]} {[%emt 00:01:23]} 9. Bd3
{[%clk 01:33:40]} {[%emt 00:00:12]} Be7 {[%clk 01:30:49]} {[%emt 00:00:21]} 10.
O-O {[%clk 01:33:51]} {[%emt 00:00:19]} O-O {[%clk 01:30:56]} {[%emt 00:00:23]}
11. Kh1 {[%clk 01:34:05]} {[%emt 00:00:16]} Nc5 {[%clk 01:22:28]} {[%emt
00:08:58]} 12. Qe1 {[%clk 01:32:56]} {[%emt 00:01:40]} b6 {[%clk 01:21:14]}
{[%emt 00:01:44]} 13. Nh4 {[%clk 01:26:17]} {[%emt 00:07:07]} Re8 {[%clk
01:06:13]} {[%emt 00:15:30]} 14. f5 {[%clk 01:23:18]} {[%emt 00:03:29]} Bb7
{[%clk 00:55:08]} {[%emt 00:11:35]} 15. Bg5 {[%clk 00:57:24]} {[%emt 00:26:23]}
h6 {[%clk 00:37:37]} {[%emt 00:18:03]} 16. Bd2 {[%clk 00:54:36]} {[%emt
00:03:17]} d5 {[%clk 00:30:18]} {[%emt 00:07:50]} 17. exd5 {[%clk 00:50:34]}
{[%emt 00:04:31]} e4 {[%clk 00:22:03]} {[%emt 00:08:44]} 18. Bc4 {[%clk
00:46:15]} {[%emt 00:04:50]} Bd6 {[%clk 00:19:38]} {[%emt 00:02:55]} 19. g3
{[%clk 00:37:10]} {[%emt 00:09:35]} e3 {[%clk 00:17:56]} {[%emt 00:02:12]} 20.
Bxe3 {[%clk 00:31:32]} {[%emt 00:06:08]} Ng4 {[%clk 00:17:35]} {[%emt
00:00:51]} 21. Ng2 {[%clk 00:30:26]} {[%emt 00:01:36]} Nxe3 {[%clk 00:13:42]}
{[%emt 00:04:22]} 22. Nxe3 {[%clk 00:30:27]} {[%emt 00:00:29]} Nd7 {[%clk
00:14:02]} {[%emt 00:00:11]} 23. Bb3 {[%clk 00:20:40]} {[%emt 00:10:17]} Bc5
{[%clk 00:14:14]} {[%emt 00:00:18]} 24. Ncd1 {[%clk 00:20:52]} {[%emt
00:00:18]} Nf6 {[%clk 00:12:31]} {[%emt 00:02:13]} 25. Qd2 {[%clk 00:17:56]}
{[%emt 00:03:27]} Rad8 {[%clk 00:10:13]} {[%emt 00:02:47]} 26. c4 {[%clk
00:15:27]} {[%emt 00:02:59]} b5 {[%clk 00:09:32]} {[%emt 00:01:11]} 27. axb5
{[%clk 00:13:02]} {[%emt 00:02:55]} axb5 {[%clk 00:09:59]} {[%emt 00:00:03]} 28.
Rc1 {[%clk 00:11:37]} {[%emt 00:01:55]} Qb6 {[%clk 00:09:26]} {[%emt 00:01:03]}
29. Rf3 {[%clk 00:09:17]} {[%emt 00:02:50]} Ne4 {[%clk 00:07:19]} {[%emt
00:02:37]} 30. Qd3 {[%clk 00:07:41]} {[%emt 00:02:06]} Ng5 {[%clk 00:07:29]}
{[%emt 00:00:20]} 31. Kg2 {[%clk 00:08:04]} {[%emt 00:00:07]} Nxf3 {[%clk
00:07:26]} {[%emt 00:00:33]} 32. Kxf3 {[%clk 00:08:32]} {[%emt 00:00:02]} Re7
{[%clk 00:04:22]} {[%emt 00:03:34]} 33. cxb5 {[%clk 00:06:25]} {[%emt
00:02:38]} Rde8 {[%clk 00:04:41]} {[%emt 00:00:11]} 34. Ng2 {[%clk 00:06:06]}
{[%emt 00:00:48]} Re2 {[%clk 00:04:00]} {[%emt 00:01:12]} 35. Rc2 {[%clk
00:05:32]} {[%emt 00:01:04]} Rxc2 {[%clk 00:03:04]} {[%emt 00:01:26]} 36. Qxc2
{[%clk 00:06:01]} {[%emt 00:00:01]} Qxb5 {[%clk 00:02:12]} {[%emt 00:01:22]} 37.
Bc4 {[%clk 00:06:16]} {[%emt 00:00:14]} Qb4 {[%clk 00:02:06]} {[%emt 00:00:36]}
38. b3 {[%clk 00:05:37]} {[%emt 00:01:09]} Bb6 {[%clk 00:02:00]} {[%emt
00:00:36]} 39. Nc3 {[%clk 00:05:44]} {[%emt 00:00:23]} Qe7 {[%clk 00:01:49]}
{[%emt 00:00:42]} 40. Ne4 {[%clk 00:05:59]} {[%emt 00:00:14]} Qe5 {[%clk
00:00:58]} {[%emt 00:01:21]} 41. g4 {[%clk 00:11:26]} {[%emt 00:25:02]} Bxd5
{[%clk 00:25:33]} {[%emt 00:05:56]} 42. Bxd5 {[%clk 00:09:14]} {[%emt
00:02:43]} Qxd5 {[%clk 00:25:56]} {[%emt 00:00:06]} 43. h3 {[%clk 00:08:35]}
{[%emt 00:01:09]} Qd4 {[%clk 00:24:08]} {[%emt 00:02:18]} 44. Ng3 {[%clk
00:06:56]} {[%emt 00:02:09]} Bc5 {[%clk 00:21:41]} {[%emt 00:02:57]} 45. h4
{[%clk 00:05:51]} {[%emt 00:01:35]} Bd6 {[%clk 00:20:05]} {[%emt 00:02:06]} 46.
Ne4 {[%clk 00:04:38]} {[%emt 00:01:42]} Bb8 {[%clk 00:19:59]} {[%emt 00:00:37]}
47. Ne3 {[%clk 00:04:41]} {[%emt 00:00:28]} Ba7 {[%clk 00:19:51]} {[%emt
00:00:37]} 48. Nd1 {[%clk 00:03:12]} {[%emt 00:01:59]} Rxe4 {[%clk 00:19:05]}
{[%emt 00:01:16]} 49. Qxe4 {[%clk 00:03:34]} {[%emt 00:00:09]} Qxd1+ {[%clk
00:19:27]} {[%emt 00:00:07]} 50. Kg2 {[%clk 00:03:20]} {[%emt 00:00:45]} Qxb3
{[%clk 00:19:10]} {[%emt 00:00:46]} 51. g5 {[%clk 00:02:58]} {[%emt 00:00:52]}
Qb2+ {[%clk 00:07:44]} {[%emt 00:11:56]} 52. Kh3 {[%clk 00:02:43]} {[%emt
00:00:45]} Qc3+ {[%clk 00:07:12]} {[%emt 00:01:01]} 53. Kg4 {[%clk 00:02:57]}
{[%emt 00:00:17]} Qd4 {[%clk 00:06:53]} {[%emt 00:00:49]} 54. Kf3 {[%clk
00:02:29]} {[%emt 00:00:58]} Qxe4+ {[%clk 00:06:44]} {[%emt 00:00:39]} 55. Kxe4
{[%clk 00:02:51]} {[%emt 00:00:08]} hxg5 {[%clk 00:05:40]} {[%emt 00:01:34]} 56.
hxg5 {[%clk 00:03:13]} {[%emt 00:00:08]} g6 {[%clk 00:06:00]} {[%emt 00:00:10]}
57. Ke5 {[%clk 00:01:04]} {[%emt 00:02:39]} gxf5 {[%clk 00:06:00]} {[%emt
00:00:30]} 58. Kxf5 {[%clk 00:01:01]} {[%emt 00:00:33]} Kg7 {[%clk 00:06:21]}
{[%emt 00:00:09]} 0-1

[Event "NJSK 2026 Jeugd A"]
[Site "Helmond, Netherlands"]
[Date "2026.05.01"]
[Round "7.2"]
[White "Ten Dam, Bram"]
[Black "Smeets, Kobe"]
[Result "1-0"]
[TimeControl "90min/40moves + 30min + 30sec/move"]
[WhiteTitle "-"]
[BlackTitle "-"]
[WhiteFideId "40104877"]
[BlackFideId "1063910"]
[WhiteElo "2363"]
[BlackElo "2315"]

1. b3 {[%clk 01:30:53]} {[%emt 00:00:07]} d5 {[%clk 01:30:37]} {[%emt
00:00:24]} 2. Bb2 {[%clk 01:31:02]} {[%emt 00:00:21]} Nf6 {[%clk 01:30:20]}
{[%emt 00:00:47]} 3. e3 {[%clk 01:31:25]} {[%emt 00:00:06]} Bf5 {[%clk
01:30:09]} {[%emt 00:00:41]} 4. f4 {[%clk 01:30:47]} {[%emt 00:01:09]} e6
{[%clk 01:30:07]} {[%emt 00:00:32]} 5. Nf3 {[%clk 01:31:08]} {[%emt 00:00:09]}
c5 {[%clk 01:30:30]} {[%emt 00:00:07]} 6. Bb5+ {[%clk 01:30:33]} {[%emt
00:01:05]} Nfd7 {[%clk 01:29:23]} {[%emt 00:01:36]} 7. O-O {[%clk 01:30:25]}
{[%emt 00:00:38]} h6 {[%clk 01:27:59]} {[%emt 00:01:53]} 8. d3 {[%clk
01:28:55]} {[%emt 00:02:02]} Bh7 {[%clk 01:16:04]} {[%emt 00:12:24]} 9. Nbd2
{[%clk 01:25:51]} {[%emt 00:03:34]} a6 {[%clk 01:16:30]} {[%emt 00:00:05]} 10.
Bxd7+ {[%clk 01:26:15]} {[%emt 00:00:06]} Nxd7 {[%clk 01:16:58]} {[%emt
00:00:02]} 11. Ne5 {[%clk 01:24:19]} {[%emt 00:02:25]} Nf6 {[%clk 01:12:14]}
{[%emt 00:05:12]} 12. Ndf3 {[%clk 01:22:03]} {[%emt 00:02:48]} Bd6 {[%clk
01:11:31]} {[%emt 00:01:11]} 13. g4 {[%clk 01:11:02]} {[%emt 00:11:32]} Qe7
{[%clk 00:55:36]} {[%emt 00:16:24]} 14. g5 {[%clk 01:06:49]} {[%emt 00:04:44]}
hxg5 {[%clk 00:51:40]} {[%emt 00:04:26]} 15. Nxg5 {[%clk 01:04:18]} {[%emt
00:03:01]} Bg8 {[%clk 00:51:16]} {[%emt 00:00:52]} 16. Rf2 {[%clk 00:54:47]}
{[%emt 00:10:03]} O-O-O {[%clk 00:50:42]} {[%emt 00:01:05]} 17. Rg2 {[%clk
00:54:17]} {[%emt 00:01:00]} Nh5 {[%clk 00:46:42]} {[%emt 00:04:28]} 18. Qf3
{[%clk 00:45:24]} {[%emt 00:09:24]} Qe8 {[%clk 00:45:19]} {[%emt 00:01:51]} 19.
Nh3 {[%clk 00:40:41]} {[%emt 00:05:15]} f6 {[%clk 00:42:51]} {[%emt 00:02:59]}
20. Ng4 {[%clk 00:39:44]} {[%emt 00:01:27]} Bh7 {[%clk 00:35:46]} {[%emt
00:07:35]} 21. Re1 {[%clk 00:37:16]} {[%emt 00:02:57]} Rf8 {[%clk 00:32:26]}
{[%emt 00:03:50]} 22. Ngf2 {[%clk 00:34:38]} {[%emt 00:03:09]} g6 {[%clk
00:28:39]} {[%emt 00:04:16]} 23. c4 {[%clk 00:32:40]} {[%emt 00:02:30]} dxc4
{[%clk 00:24:21]} {[%emt 00:04:48]} 24. dxc4 {[%clk 00:31:25]} {[%emt
00:01:45]} Ng7 {[%clk 00:18:27]} {[%emt 00:06:23]} 25. Ne4 {[%clk 00:26:46]}
{[%emt 00:05:09]} Be7 {[%clk 00:18:52]} {[%emt 00:00:06]} 26. Nhf2 {[%clk
00:24:13]} {[%emt 00:03:03]} Qc6 {[%clk 00:14:51]} {[%emt 00:04:30]} 27. Qh3
{[%clk 00:23:33]} {[%emt 00:01:11]} Nh5 {[%clk 00:15:02]} {[%emt 00:00:18]} 28.
Bc3 {[%clk 00:20:16]} {[%emt 00:03:48]} Rd7 {[%clk 00:14:54]} {[%emt 00:00:38]}
29. Ng3 {[%clk 00:19:26]} {[%emt 00:01:20]} Rh8 {[%clk 00:06:48]} {[%emt
00:08:36]} 30. Nxh5 {[%clk 00:18:42]} {[%emt 00:01:14]} gxh5 {[%clk 00:07:14]}
{[%emt 00:00:03]} 31. e4 {[%clk 00:17:44]} {[%emt 00:01:29]} Bg8 {[%clk
00:05:55]} {[%emt 00:01:48]} 32. Rg7 {[%clk 00:16:53]} {[%emt 00:01:22]} Bd8
{[%clk 00:05:35]} {[%emt 00:00:50]} 33. Rxd7 {[%clk 00:13:58]} {[%emt
00:03:25]} Qxd7 {[%clk 00:06:04]} 34. Rd1 {[%clk 00:14:20]} {[%emt 00:00:08]}
Qc7 {[%clk 00:04:54]} {[%emt 00:01:40]} 35. f5 {[%clk 00:10:52]} {[%emt
00:03:58]} Qg7+ {[%clk 00:02:01]} {[%emt 00:03:23]} 36. Kf1 {[%clk 00:10:44]}
{[%emt 00:00:39]} e5 {[%clk 00:00:44]} {[%emt 00:01:47]} 37. Bxe5 {[%clk
00:10:47]} {[%emt 00:00:26]} Bf7 {[%clk 00:00:57]} {[%emt 00:00:17]} 38. Bc3
{[%clk 00:09:50]} {[%emt 00:01:26]} Rg8 {[%clk 00:00:38]} {[%emt 00:00:49]} 39.
e5 {[%clk 00:09:56]} {[%emt 00:00:25]} Be8 {[%clk 00:00:44]} {[%emt 00:00:24]}
40. exf6 {[%clk 00:08:17]} {[%emt 00:02:08]} Qg5 {[%clk 00:00:38]} {[%emt
00:00:37]} 41. Qg3 {[%clk 00:00:36]} {[%emt 00:08:11]} Bc6 {[%clk 00:26:46]}
{[%emt 00:04:22]} 42. Rxd8+ {[%clk 00:16:44]} {[%emt 00:14:22]} Kxd8 {[%clk
00:27:07]} {[%emt 00:00:08]} 43. Qd6+ {[%clk 00:17:10]} {[%emt 00:00:04]} Kc8
{[%clk 00:23:58]} {[%emt 00:03:39]} 44. f7 {[%clk 00:17:30]} {[%emt 00:00:11]}
Bg2+ {[%clk 00:14:07]} {[%emt 00:10:20]} 45. Ke2 {[%clk 00:17:43]} {[%emt
00:00:18]} Bf3+ {[%clk 00:14:13]} {[%emt 00:00:23]} 46. Kxf3 {[%clk 00:18:02]}
{[%emt 00:00:12]} Qxf5+ {[%clk 00:14:39]} {[%emt 00:00:04]} 47. Qf4 {[%clk
00:18:24]} {[%emt 00:00:07]} Qxf4+ {[%clk 00:15:03]} {[%emt 00:00:06]} 48. Kxf4
{[%clk 00:18:53]} {[%emt 00:00:02]} Rf8 {[%clk 00:15:29]} {[%emt 00:00:04]} 49.
Ne4 {[%clk 00:17:17]} {[%emt 00:02:06]} Rxf7+ {[%clk 00:15:57]} {[%emt
00:00:01]} 50. Ke3 {[%clk 00:15:41]} {[%emt 00:02:06]} Rf1 {[%clk 00:12:15]}
{[%emt 00:04:12]} 51. Nxc5 {[%clk 00:13:47]} {[%emt 00:02:25]} Kc7 {[%clk
00:12:05]} {[%emt 00:00:39]} 52. Be5+ {[%clk 00:13:17]} {[%emt 00:01:00]} Kc6
{[%clk 00:12:24]} {[%emt 00:00:11]} 53. Nd3 {[%clk 00:13:25]} {[%emt 00:00:22]}
Rh1 {[%clk 00:10:45]} {[%emt 00:02:09]} 54. b4 {[%clk 00:11:04]} {[%emt
00:02:52]} b5 {[%clk 00:09:55]} {[%emt 00:01:19]} 55. c5 {[%clk 00:10:44]}
{[%emt 00:00:51]} Kd5 {[%clk 00:09:32]} {[%emt 00:00:53]} 56. Bb8 {[%clk
00:07:41]} {[%emt 00:03:33]} h4 {[%clk 00:09:56]} {[%emt 00:00:06]} 57. Nf4+
{[%clk 00:07:20]} {[%emt 00:00:51]} Kc6 {[%clk 00:10:04]} {[%emt 00:00:22]} 58.
Ng6 {[%clk 00:07:17]} {[%emt 00:00:32]} h3 {[%clk 00:09:13]} {[%emt 00:01:22]}
59. Bf4 {[%clk 00:06:08]} {[%emt 00:01:39]} Kd5 {[%clk 00:06:19]} {[%emt
00:03:23]} 60. Bg3 {[%clk 00:04:18]} {[%emt 00:02:20]} Rb1 {[%clk 00:06:05]}
{[%emt 00:00:44]} 61. Nf4+ {[%clk 00:04:39]} {[%emt 00:00:10]} Kc6 {[%clk
00:06:28]} {[%emt 00:00:06]} 62. Nd3 {[%clk 00:04:44]} {[%emt 00:00:25]} Ra1
{[%clk 00:05:29]} {[%emt 00:01:29]} 63. Ne5+ {[%clk 00:03:19]} {[%emt
00:01:55]} Kd5 {[%clk 00:05:52]} {[%emt 00:00:07]} 64. Nf7 {[%emt 00:02:38]}
Rxa2 {[%clk 00:05:38]} 65. Nd8 {[%clk 00:01:45]} {[%emt 00:00:40]} Ra3+ {[%clk
00:06:04]} {[%emt 00:00:03]} 66. Kf2 {[%clk 00:01:57]} {[%emt 00:00:18]} Ra2+
{[%clk 00:02:51]} {[%emt 00:03:44]} 67. Ke1 {[%clk 00:01:51]} {[%emt 00:00:34]}
Rb2 {[%clk 00:00:53]} {[%emt 00:02:30]} 68. c6 {[%clk 00:02:13]} {[%emt
00:00:08]} Rxb4 {[%clk 00:01:17]} {[%emt 00:00:05]} 69. c7 {[%clk 00:02:38]}
{[%emt 00:00:05]} Rc4 {[%clk 00:01:42]} {[%emt 00:00:06]} 70. Nb7 {[%clk
00:02:54]} {[%emt 00:00:13]} Ke6 {[%clk 00:01:06]} {[%emt 00:01:07]} 71. Na5
{[%clk 00:01:50]} {[%emt 00:01:33]} Rc3 {[%clk 00:01:28]} {[%emt 00:00:06]} 72.
Kd2 {[%clk 00:02:05]} {[%emt 00:00:16]} b4 {[%clk 00:01:50]} {[%emt 00:00:08]}
73. Bf4 {[%clk 00:01:00]} {[%emt 00:01:35]} Kd7 {[%clk 00:02:04]} {[%emt
00:00:15]} 74. Nb7 {[%clk 00:01:09]} {[%emt 00:00:22]} Rc4 {[%clk 00:01:33]}
{[%emt 00:01:01]} 75. Be5 {[%clk 00:00:32]} {[%emt 00:01:07]} b3 {[%clk
00:01:06]} {[%emt 00:00:57]} 76. Kd3 {[%clk 00:00:42]} {[%emt 00:00:20]} Rc1
{[%clk 00:00:35]} {[%emt 00:01:01]} 77. Na5 {[%clk 00:01:03]} {[%emt 00:00:10]}
Re1 {[%clk 00:00:46]} {[%emt 00:00:17]} 78. Nc4 {[%clk 00:01:23]} {[%emt
00:00:11]} Rxe5 {[%clk 00:00:31]} {[%emt 00:00:45]} 79. Nxe5+ {[%clk 00:01:52]}
{[%emt 00:00:01]} Kxc7 {[%clk 00:00:55]} {[%emt 00:00:06]} 80. Kc3 {[%clk
00:01:51]} {[%emt 00:00:31]} Kd6 {[%clk 00:01:03]} {[%emt 00:00:21]} 81. Nf7+
{[%clk 00:02:04]} {[%emt 00:00:18]} Ke6 {[%clk 00:00:42]} {[%emt 00:00:51]} 82.
Ng5+ {[%clk 00:02:31]} {[%emt 00:00:03]} Kf5 {[%clk 00:01:08]} {[%emt
00:00:05]} 83. Nxh3 {[%clk 00:02:57]} {[%emt 00:00:03]} Kg4 {[%clk 00:01:34]}
{[%emt 00:00:04]} 84. Ng1 {[%clk 00:03:19]} {[%emt 00:00:09]} 1-0

[Event "NJSK 2026 Jeugd A"]
[Site "Helmond, Netherlands"]
[Date "2026.05.01"]
[Round "7.3"]
[White "Arnold, Rhys"]
[Black "Ritzerveld, Noah"]
[Result "0-1"]
[TimeControl "90min/40moves + 30min + 30sec/move"]
[WhiteTitle "-"]
[BlackTitle "-"]
[WhiteFideId "1068849"]
[BlackFideId "1085760"]
[WhiteElo "2315"]
[BlackElo "2205"]

1. e4 {[%clk 01:30:58]} e5 {[%clk 01:30:56]} {[%emt 00:00:05]} 2. Nf3 {[%clk
01:31:12]} {[%emt 00:00:15]} Nc6 {[%clk 01:31:22]} {[%emt 00:00:05]} 3. Bb5
{[%clk 01:31:39]} {[%emt 00:00:04]} a6 {[%clk 01:31:47]} {[%emt 00:00:05]} 4.
Bxc6 {[%clk 01:32:02]} {[%emt 00:00:06]} dxc6 {[%clk 01:32:11]} {[%emt
00:00:05]} 5. O-O {[%clk 01:32:28]} {[%emt 00:00:05]} Qf6 {[%clk 01:31:06]}
{[%emt 00:01:36]} 6. d4 {[%clk 01:32:45]} {[%emt 00:00:13]} exd4 {[%clk
01:31:31]} {[%emt 00:00:05]} 7. Bg5 {[%clk 01:33:12]} {[%emt 00:00:03]} Qd6
{[%clk 01:31:17]} {[%emt 00:00:44]} 8. Nxd4 {[%clk 01:33:35]} {[%emt 00:00:07]}
Be7 {[%clk 01:30:40]} {[%emt 00:01:06]} 9. Be3 {[%clk 01:34:01]} {[%emt
00:00:05]} Nf6 {[%clk 01:28:41]} {[%emt 00:02:30]} 10. f3 {[%clk 01:33:34]}
{[%emt 00:00:57]} c5 {[%clk 01:19:10]} {[%emt 00:10:01]} 11. Ne2 {[%clk
01:30:54]} {[%emt 00:03:10]} Be6 {[%clk 01:16:44]} {[%emt 00:02:55]} 12. Nbc3
{[%clk 01:29:07]} {[%emt 00:02:17]} O-O-O {[%clk 01:14:47]} {[%emt 00:02:27]}
13. Qe1 {[%clk 01:23:36]} {[%emt 00:06:02]} Qc6 {[%clk 01:09:54]} {[%emt
00:05:22]} 14. Qf2 {[%clk 01:10:18]} {[%emt 00:13:48]} Nh5 {[%clk 00:58:48]}
{[%emt 00:11:36]} 15. Rad1 {[%clk 01:00:34]} {[%emt 00:10:14]} g5 {[%clk
00:56:06]} {[%emt 00:03:13]} 16. h3 {[%clk 00:51:40]} {[%emt 00:09:22]} Rhg8
{[%clk 00:51:16]} {[%emt 00:05:21]} 17. Rxd8+ {[%clk 00:49:05]} {[%emt
00:03:04]} Rxd8 {[%clk 00:51:32]} 18. b3 {[%clk 00:40:19]} {[%emt 00:09:32]}
Bf6 {[%clk 00:45:44]} {[%emt 00:06:17]} 19. Rd1 {[%clk 00:32:41]} {[%emt
00:08:08]} Rxd1+ {[%clk 00:40:16]} {[%emt 00:05:58]} 20. Nxd1 {[%clk 00:33:08]}
{[%emt 00:00:03]} Qd6 {[%clk 00:38:43]} {[%emt 00:02:03]} 21. Qe1 {[%clk
00:31:49]} {[%emt 00:01:49]} Nf4 {[%clk 00:34:20]} {[%emt 00:04:52]} 22. Nxf4
{[%clk 00:27:52]} {[%emt 00:04:28]} gxf4 {[%clk 00:34:45]} {[%emt 00:00:04]} 23.
Bc1 {[%clk 00:27:25]} {[%emt 00:00:58]} Qd4+ {[%clk 00:29:39]} {[%emt
00:05:37]} 24. Kh1 {[%clk 00:26:53]} {[%emt 00:01:02]} Qa1 {[%clk 00:27:47]}
{[%emt 00:02:22]} 25. Bxf4 {[%clk 00:26:08]} {[%emt 00:01:14]} Qxa2 {[%clk
00:24:13]} {[%emt 00:04:05]} 26. Ne3 {[%clk 00:21:08]} {[%emt 00:05:30]} Qa1
{[%clk 00:21:24]} {[%emt 00:03:20]} 27. Qxa1 {[%clk 00:20:53]} {[%emt
00:00:45]} Bxa1 {[%clk 00:21:49]} {[%emt 00:00:05]} 28. Kg1 {[%clk 00:16:40]}
{[%emt 00:04:42]} c4 {[%clk 00:18:35]} {[%emt 00:03:45]} 29. b4 {[%clk
00:01:25]} {[%emt 00:15:46]} Bc3 {[%clk 00:15:39]} {[%emt 00:03:26]} 30. Nd1
{[%clk 00:01:54]} Bxb4 {[%clk 00:15:34]} {[%emt 00:00:35]} 31. Be5 {[%clk
00:02:18]} {[%emt 00:00:06]} b5 {[%clk 00:14:50]} {[%emt 00:01:15]} 32. Kf1
{[%clk 00:00:38]} {[%emt 00:02:09]} Bd6 {[%clk 00:14:32]} {[%emt 00:00:48]} 33.
Bb2 {[%clk 00:00:35]} {[%emt 00:00:32]} b4 {[%clk 00:14:32]} {[%emt 00:00:31]}
34. e5 {[%clk 00:00:36]} {[%emt 00:00:29]} Bc5 {[%clk 00:14:45]} {[%emt
00:00:17]} 35. c3 {[%clk 00:00:48]} {[%emt 00:00:18]} b3 {[%clk 00:14:19]}
{[%emt 00:00:57]} 36. Bc1 {[%clk 00:01:14]} {[%emt 00:00:03]} a5 {[%clk
00:14:25]} {[%emt 00:00:24]} 37. Nb2 {[%clk 00:01:40]} {[%emt 00:00:03]} Bd7
{[%clk 00:14:50]} {[%emt 00:00:06]} 38. Ke1 {[%clk 00:01:52]} {[%emt 00:00:17]}
Bb5 {[%clk 00:15:10]} {[%emt 00:00:10]} 0-1

[Event "NJSK 2026 Jeugd A"]
[Site "Helmond, Netherlands"]
[Date "2026.05.01"]
[Round "7.4"]
[White "Dinanath, Hrdya"]
[Black "Krylov, Philippe"]
[Result "1-0"]
[TimeControl "90min/40moves + 30min + 30sec/move"]
[WhiteTitle "-"]
[BlackTitle "-"]
[WhiteFideId "1087991"]
[BlackFideId "1082930"]
[WhiteElo "2107"]
[BlackElo "2183"]

1. e4 {[%clk 01:30:58]} {[%emt 00:00:02]} e6 {[%clk 01:30:48]} {[%emt
00:00:12]} 2. d4 {[%clk 01:31:24]} {[%emt 00:00:04]} d5 {[%clk 01:31:14]}
{[%emt 00:00:04]} 3. Nd2 {[%clk 01:31:51]} {[%emt 00:00:04]} Be7 {[%clk
01:30:56]} {[%emt 00:00:47]} 4. Ngf3 {[%clk 01:31:31]} {[%emt 00:00:51]} Nf6
{[%clk 01:31:16]} {[%emt 00:00:09]} 5. Bd3 {[%clk 01:31:22]} {[%emt 00:00:39]}
c5 {[%clk 01:31:33]} {[%emt 00:00:13]} 6. exd5 {[%clk 01:29:11]} {[%emt
00:02:41]} Qxd5 {[%clk 01:31:00]} {[%emt 00:01:03]} 7. dxc5 {[%clk 01:28:42]}
{[%emt 00:00:59]} Qxc5 {[%clk 01:30:46]} {[%emt 00:00:45]} 8. O-O {[%clk
01:27:35]} {[%emt 00:01:37]} O-O {[%clk 01:30:01]} {[%emt 00:01:15]} 9. Qe2
{[%clk 01:27:06]} {[%emt 00:00:58]} Qc7 {[%clk 01:29:10]} {[%emt 00:01:21]} 10.
Nc4 {[%clk 01:18:57]} {[%emt 00:08:39]} Nc6 {[%clk 01:25:52]} {[%emt 00:03:47]}
11. a3 {[%clk 01:18:10]} {[%emt 00:01:18]} a6 {[%clk 01:23:18]} {[%emt
00:03:04]} 12. Nce5 {[%clk 01:13:03]} {[%emt 00:05:36]} Nxe5 {[%clk 01:22:05]}
{[%emt 00:01:43]} 13. Nxe5 {[%clk 01:13:14]} {[%emt 00:00:19]} Nd7 {[%clk
01:18:56]} {[%emt 00:03:39]} 14. Bf4 {[%clk 01:10:27]} {[%emt 00:03:17]} Bd6
{[%clk 01:17:02]} {[%emt 00:02:24]} 15. Nxd7 {[%clk 01:10:10]} {[%emt
00:00:47]} Bxd7 {[%clk 01:17:25]} {[%emt 00:00:07]} 16. Bxh7+ {[%clk 01:09:52]}
{[%emt 00:00:47]} Kxh7 {[%clk 01:14:55]} {[%emt 00:03:01]} 17. Qd3+ {[%clk
01:10:19]} {[%emt 00:00:04]} Kg8 {[%clk 01:14:13]} {[%emt 00:01:11]} 18. Bxd6
{[%clk 01:10:44]} {[%emt 00:00:05]} Qc8 {[%clk 01:14:25]} {[%emt 00:00:17]} 19.
Bxf8 {[%clk 01:11:06]} {[%emt 00:00:09]} Bb5 {[%clk 01:14:38]} {[%emt
00:00:17]} 20. Qg3 {[%clk 01:09:00]} {[%emt 00:02:36]} Kxf8 {[%clk 01:14:08]}
{[%emt 00:01:00]} 21. Rfc1 {[%clk 01:07:43]} {[%emt 00:01:48]} Qc5 {[%clk
01:12:53]} {[%emt 00:01:44]} 22. c4 {[%clk 01:05:21]} {[%emt 00:02:52]} Bc6
{[%clk 01:13:17]} {[%emt 00:00:06]} 23. b4 {[%clk 01:04:42]} {[%emt 00:01:09]}
Qh5 {[%clk 01:13:42]} {[%emt 00:00:05]} 24. Rd1 {[%clk 01:03:19]} {[%emt
00:01:53]} g6 {[%clk 01:12:00]} {[%emt 00:02:12]} 25. Rd4 {[%clk 00:57:56]}
{[%emt 00:05:51]} Kg7 {[%clk 01:11:48]} {[%emt 00:00:43]} 26. Rh4 {[%clk
00:56:27]} {[%emt 00:02:00]} Qe2 {[%clk 01:10:14]} {[%emt 00:02:03]} 27. Qc3+
{[%clk 00:56:28]} {[%emt 00:00:29]} f6 {[%clk 01:10:24]} {[%emt 00:00:20]} 28.
Re1 {[%clk 00:56:37]} {[%emt 00:00:21]} Qa2 {[%clk 01:09:19]} {[%emt 00:01:35]}
29. Qh3 {[%clk 00:55:56]} {[%emt 00:01:11]} 1-0